Cogmind - Beta 13 @@@ ROGUE MODE // 2024.04.12 @ 03:09:34 Player: desiring-machine Result: Destroyed by S-43 Plague with Heavy Machine Gun Performance ------------- Evolutions (7) 3500 Regions Visited (10) 2000 Robots Destroyed (31) 155 Value Destroyed (1047) 1047 Prototype IDs (4) 80 Alien Tech Used (0) 0 Bonus (-177) -177 TOTAL SCORE: 6605 Bonus ------- Friendly Fire -177 Cogmind --------- Core Integrity 0/1300 Matter 215/300 Energy 150/150 System Corruption 7% Temperature Cool (0) Movement Core (250) Ox4 Location -3/Research Parts ------- > --- POWER (2) -------- Micro Antimatter Reactor > --- PROPULSION (8) --- (None) > --- UTILITY (6) ------ Terrain Scan Processor Mini Drone Bay (0/3) Mini Drone Bay (0/3) Mini Drone Bay (2/3) > --- WEAPON (5) ------- (None) > --- INVENTORY (5) ---- Antigrav Array Matter Compressor (88) Peak State ------------ > --- POWER ------------ Neutrino Core > --- PROPULSION ------- Impulse Thruster Field Propulsion Array Field Propulsion Array Field Propulsion Array > --- UTILITY ---------- Machine Analyzer Terrain Scan Processor Quantum Capacitor Advanced System Shield Improved Corruption Screen > --- WEAPON ----------- Phase Gun Disruptor Cannon > --- INVENTORY -------- Matter Compressor Wave Gun Phase Gun [Rating: 100] Favorites ----------- Power Light Deuterium Engine Engine Light Deuterium Engine Power Core Light Nuclear Core Reactor Micro Antimatter Reactor Propulsion VTOL Module Treads Advanced Medium Treads Leg Aluminum Leg Wheel Armored Wheel Hover Unit Gyrokinetic Inverter Flight Unit VTOL Module Utility Terrain Scan Processor Device Advanced ECM Suite Storage Small Storage Unit Processor Terrain Scan Processor Hackware Advanced System Shield Protection Improved Light Armor Plating Weapon Rocket Launcher Energy Gun Spread Laser Energy Cannon Disruptor Cannon Ballistic Gun Autogun Launcher Rocket Launcher Build | -11 -10 -9 -8 -7 -6 -5 -4 -4 -4 -3 ------- Run | Yrd Mat Mat Mat Fac Fac Fac Fac Upp Upp Res Slots Evolved 14 | . . 2 2 2 2 2 2 . . 2 Power 1 | . . . . . . 1 . . . . Propulsion 6 | . . 2 1 1 1 . . . . 1 Utility 4 | . . . 1 . 1 1 1 . . . Weapon 3 | . . . . 1 . . 1 . . 1 Parts Attached 109 | 5 8 5 20 11 17 17 12 1 . 13 Power 15 | 1 1 . 3 . 4 3 1 1 . 1 Engine 9 | 1 1 . 2 . 2 2 . 1 . . Core 5 | . . . 1 . 2 1 1 . . . Reactor 1 | . . . . . . . . . . 1 Propulsion 41 | 1 4 2 7 6 7 6 4 . . 4 Treads 4 | . . . . . . . . . . 4 Leg 2 | . 2 . . . . . . . . . Wheel 7 | 1 2 2 2 . . . . . . . Hover 2 | . . . . . . 2 . . . . Flight 26 | . . . 5 6 7 4 4 . . . Utility 16 | 1 1 1 1 . 2 1 4 . . 5 Device 8 | . 1 . 1 . 2 . 1 . . 3 Storage 1 | 1 . . . . . . . . . . Processor 3 | . . 1 . . . 1 1 . . . Hackware 2 | . . . . . . . 2 . . . Protection 2 | . . . . . . . . . . 2 Artifact . | . . . . . . . . . . . Weapon 37 | 2 2 2 9 5 4 7 3 . . 3 Energy Gun 18 | 1 1 . 4 1 2 4 2 . . 3 Energy Cannon 3 | . . . 1 . . 1 1 . . . Ballistic Gun 11 | 1 1 . 3 3 1 2 . . . . Ballistic Cannon . | . . . . . . . . . . . Launcher 5 | . . 2 1 1 1 . . . . . Special Weapon . | . . . . . . . . . . . Impact Weapon . | . . . . . . . . . . . Slashing Weapon . | . . . . . . . . . . . Piercing Weapon . | . . . . . . . . . . . Special Melee Weapon . | . . . . . . . . . . . Unidentified Prototypes 4 | . . . . . 1 2 1 . . . Corrupted Parts 1 | . . . . . . . . 1 . . System Corruption 2 | . . . . . . . . 2 . . Parts Lost 46 | . 3 . 4 . 15 4 2 9 . 9 Power 6 | . 1 . 2 . 1 . 1 1 . . Propulsion 22 | . 1 . 1 . 8 4 . 4 . 4 Utility 6 | . . . . . . . 1 3 . 2 Weapon 12 | . 1 . 1 . 6 . . 1 . 3 Highest Loss Streak 14 | . 3 . 2 . 14 2 1 5 . 7 To Critical Strikes . | . . . . . . . . . . . Average Slot Usage (%) 64 | . 74 100 91 95 91 41 41 30 5 21 Engine 3 | . 9 11 5 7 5 . . 1 . . Wheel 8 | . 13 44 36 . . . . . . . Flight 17 | . . . 4 44 44 15 13 10 . . Device 5 | . 4 1 6 6 7 8 1 3 . 1 Storage 4 | . 14 11 9 7 6 1 . . . . Processor 7 | . . 9 9 7 6 5 11 10 5 4 Energy Gun 4 | . 7 . 9 3 3 1 5 1 . 5 Ballistic Gun 4 | . 20 . 5 10 7 1 . . . . Launcher 2 | . . 20 3 5 5 . . . . . Naked Turns . | . . . . . . . . . . . Heaviest Build 29 | 11 13 17 21 22 25 19 29 11 . 17 Greatest Support 90 | 16 28 52 64 24 28 31 52 45 3 90 Greatest Overweight (x) 6 | . 2 . 1 . 1 6 . 1 . 5 Average Overweight (x) . | . . . . . . . . . . . Largest Inventory Capacity 8 | 8 8 8 8 8 8 8 5 5 5 5 Average Capacity 6 | 7 8 8 8 8 8 5 5 5 5 5 Most Carried 8 | 5 8 8 8 8 8 6 5 5 5 5 Average Carried 5 | 2 5 7 6 7 6 3 3 4 5 2 Final Capacity 8 | 8 8 8 8 8 8 5 5 5 5 5 Final Carried 8 | 3 8 8 5 7 3 3 4 5 5 3 Class Distribution -------------------- 59% | Mutant 32% | Scavenger-Sprinter Dominant Class ---------------- Mutant | -10/Materials Mutant | -9/Materials Mutant | -8/Materials Scavenger-Sprinter | -7/Factory Scavenger-Sprinter | -6/Factory Scavenger-Sprinter | -5/Factory Mutant | -4/Factory Mutant | -4/Upper Caves Mutant | -4/Upper Caves Mutant | -3/Research Resources | -11 -10 -9 -8 -7 -6 -5 -4 -4 -4 -3 ----------- Run | Yrd Mat Mat Mat Fac Fac Fac Fac Upp Upp Res Matter Collected 1562 | 250 94 11 332 167 324 198 129 57 . . Remotely . | . . . . . . . . . . . Salvage Created 1021 | . 171 39 302 70 439 . . . . . Parts 62 | . 16 3 19 2 22 . . . . . Haulers Intercepted 1 | . . . . . 1 . . . . . Recyclers Shooed 4 | . . . 1 . 2 1 . . . . Parts Field Recycled . | . . . . . . . . . . . Retrieved Matter . | . . . . . . . . . . . Parts Self-Destructed . | . . . . . . . . . . . Prevented . | . . . . . . . . . . . Kills | -11 -10 -9 -8 -7 -6 -5 -4 -4 -4 -3 ------- Run | Yrd Mat Mat Mat Fac Fac Fac Fac Upp Upp Res Combat Hostiles Destroyed 25 | . 6 2 10 1 6 . . . . . Guns 14 | . 4 . 8 1 1 . . . . . AOE 11 | . 2 2 2 . 5 . . . . . Classes Destroyed 11 | . 2 . 3 . 6 . . . . . Worker 1 | . . . . . 1 . . . . . Builder 1 | . . . . . 1 . . . . . Hauler 1 | . . . . . 1 . . . . . Recycler 2 | . . . 1 . 1 . . . . . Mechanic 1 | . . . . . 1 . . . . . Swarmer 7 | . 3 . 3 . 1 . . . . . Cutter 2 | . . . . . 2 . . . . . Grunt 9 | . 3 2 3 . 1 . . . . . Duelist 2 | . . . 1 1 . . . . . . Sentry 4 | . . . 3 . 1 . . . . . Heavy 1 | . . . . . 1 . . . . . Best Kill Streak 4 | . 3 2 4 1 4 . . . . . Combat Bots Only 4 | . 3 2 4 1 3 . . . . . Max Kills in Single Turn 2 | . 1 1 2 1 2 . . . . . Gunslinging 1 | . . . 1 . . . . . . . Exploded 2 | . 1 1 1 . 2 . . . . . Melee . | . . . . . . . . . . . Uniques/NPCs Destroyed . | . . . . . . . . . . . Combat | -11 -10 -9 -8 -7 -6 -5 -4 -4 -4 -3 -------- Run | Yrd Mat Mat Mat Fac Fac Fac Fac Upp Upp Res Hostile Shots Fired 634 | . 26 1 56 21 41 50 37 163 2 237 Missed 273 | . 8 . 15 8 8 27 21 93 2 91 Damage Taken 7532 | . 283 16 660 112 1050 487 323 1409 . 3192 Core 2718 | . 66 2 138 16 148 166 63 797 . 1322 Absorbed by Shields . | . . . . . . . . . . . Core Remaining (%) 79 | 100 73 99 74 97 82 83 . . 25 . Volleys Fired 70 | . 15 2 28 9 11 . 5 . . . Largest 3 | . 2 2 2 2 3 . 1 . . . Hottest 130 | . 60 66 130 78 123 . 88 . . . Shots Fired 135 | . 30 3 49 18 30 . 5 . . . Gun 119 | . 30 . 44 18 22 . 5 . . . Cannon . | . . . . . . . . . . . Launcher 16 | . . 3 5 . 8 . . . . . Special . | . . . . . . . . . . . Kinetic 62 | . 25 . 11 11 15 . . . . . Thermal 38 | . . . 33 . . . 5 . . . Explosive 16 | . . 3 5 . 8 . . . . . Electromagnetic 19 | . 5 . . 7 7 . . . . . Robot Hit Streak 19 | . 5 6 19 3 5 . 4 . . . Robot Miss Streak 8 | . 3 . 5 7 8 . 2 . . . Penetration Max . | . . . . . . . . . . . Secondary Targets 2 | . . . 2 . . . . . . . Max Gunslinging Chain 1 | . . . 1 . . . . . . . Capacitor 5 | . . . . . . . 5 . . . Shots Hit Robots 87 | . 17 3 42 7 15 . 3 . . . Core Hits 107 | . 10 3 45 3 45 . . 1 . . Critical Kills . | . . . . . . . . . . . Critical Parts Destroyed . | . . . . . . . . . . . Critical Strikes 1 | . . . . . 1 . . . . . Corrupt 1 | . . . . . 1 . . . . . Melee Attacks . | . . . . . . . . . . . Impact . | . . . . . . . . . . . Slashing . | . . . . . . . . . . . Piercing . | . . . . . . . . . . . Sneak Attacks . | . . . . . . . . . . . Combat Hostiles . | . . . . . . . . . . . Follow-up Attacks . | . . . . . . . . . . . Damage Inflicted 2991 | . 247 185 884 141 1395 42 96 1 . . Guns 1155 | . 150 . 574 141 194 . 96 . . . Cannons . | . . . . . . . . . . . Explosions 1793 | . 97 185 310 . 1201 . . . . . Melee . | . . . . . . . . . . . Ramming 43 | . . . . . . 42 . 1 . . Kinetic 460 | . 116 . 108 83 153 . . . . . Thermal 752 | . 97 . 466 . 93 . 96 . . . Explosive 1603 | . . 185 310 . 1108 . . . . . Electromagnetic 133 | . 34 . . 58 41 . . . . . Impact . | . . . . . . . . . . . Slashing . | . . . . . . . . . . . Piercing . | . . . . . . . . . . . Highest Corruption 9 | . . . . . . 5 . 9 9 7 Average Corruption 5 | . . . . . . 5 . 5 9 4 Corruption Purged . | . . . . . . . . . . . Corruption Blocked 6 | . . . . . . 2 3 1 . . Effects 18 | . . . . . . 10 . 7 1 . Message Errors 2 | . . . . . . 1 . . 1 . Matter Fused 6 | . . . . . . 5 . 1 . . Heat Flow Errors 1 | . . . . . . . . 1 . . Energy Discharges 4 | . . . . . . 2 . 2 . . Data Loss (minor) 1 | . . . . . . . . 1 . . Data Loss (major) 1 | . . . . . . 1 . . . . Alerts 3 | . . . . . . 1 . 2 . . Overload Shots . | . . . . . . . . . . . Overflow Damage 39 | . 5 . . . 34 . . . . . Projectiles . | . . . . . . . . . . . Explosions 39 | . 5 . . . 34 . . . . . Melee . | . . . . . . . . . . . Knockbacks 1 | . . . . . . 1 . . . . Impact 1 | . . . . . . 1 . . . . Kinetic . | . . . . . . . . . . . Secondary . | . . . . . . . . . . . Self-Inflicted Damage 257 | . 68 5 26 . 138 20 . . . . Shots 9 | . 2 1 1 . 5 . . . . . Rammed 6 | . . . . . . 5 . 1 . . Targets Rammed 6 | . . . . . . 5 . 1 . . Kicked . | . . . . . . . . . . . Crushed . | . . . . . . . . . . . Highest Temperature 322 | . 41 5 281 24 81 . 322 258 . . Average Temperature 69 | . 18 5 124 8 27 . 176 138 . . Received Heat Transfer 933 | . 114 6 261 27 288 18 24 123 . 72 Effects 4 | . . . 1 . . . 3 . . . Energy Bleed 1 | . . . 1 . . . . . . . Interference 3 | . . . . . . . 3 . . . Siege Activations . | . . . . . . . . . . . Robots Corrupted . | . . . . . . . . . . . Combat Hostiles . | . . . . . . . . . . . Parts Fried . | . . . . . . . . . . . Impact Corruptions . | . . . . . . . . . . . Robots Melted . | . . . . . . . . . . . Combat Hostiles . | . . . . . . . . . . . Parts Melted . | . . . . . . . . . . . Heat Transferred 852 | . 50 . 591 . 100 . 111 . . . Parts Sabotaged . | . . . . . . . . . . . Parts Stolen . | . . . . . . . . . . . Parts Stripped . | . . . . . . . . . . . Power Chain Reactions 3 | . 2 . . . 1 . . . . . Alert | -11 -10 -9 -8 -7 -6 -5 -4 -4 -4 -3 ------- Run | Yrd Mat Mat Mat Fac Fac Fac Fac Upp Upp Res Peak Influence 492 | . 117 149 399 123 321 492 421 . . 343 Initial 268 | . . 49 62 103 60 127 191 . . 268 Average 203 | . 86 61 247 106 151 320 269 . . 280 Maximum Alert Level 2 | . . . 1 . 1 2 2 . . 1 Low Security (%) 52 | 100 100 100 28 100 60 36 41 . . . Level 1 39 | . . . 71 . 39 21 38 . . 100 Level 2 8 | . . . . . . 42 19 . . . Level 3 . | . . . . . . . . . . . Level 4 . | . . . . . . . . . . . Level 5 . | . . . . . . . . . . . High Security . | . . . . . . . . . . . Max Security . | . . . . . . . . . . . Squads Dispatched 19 | . . 1 2 1 10 1 2 . . 2 Investigation . | . . . . . . . . . . . Extermination 4 | . . . . . 1 1 1 . . 1 Reinforcement 12 | . . 1 2 1 6 . 1 . . 1 Assault . | . . . . . . . . . . . Garrison 3 | . . . . . 3 . . . . . Intercept . | . . . . . . . . . . . Searches Triggered 2 | . . . . . . 1 1 . . . Construction Impeded 2 | . . . . . 2 . . . . . Haulers Reinforced . | . . . . . . . . . . . Active Scanning Responses . | . . . . . . . . . . . Cargo Convoy Interrupts . | . . . . . . . . . . . Stealth | -11 -10 -9 -8 -7 -6 -5 -4 -4 -4 -3 --------- Run | Yrd Mat Mat Mat Fac Fac Fac Fac Upp Upp Res Distress Signals 6 | . . . 2 . 1 1 1 . . 1 Communications Jammed . | . . . . . . . . . . . Distress Signals . | . . . . . . . . . . . Times Spotted 151 | . 7 2 20 9 23 22 18 32 1 17 Peak Tracking Total 19 | . 3 1 6 6 5 14 14 19 1 12 Tactical Retreats 19 | . . . 1 . 2 4 3 7 . 2 Traps | -11 -10 -9 -8 -7 -6 -5 -4 -4 -4 -3 ------- Run | Yrd Mat Mat Mat Fac Fac Fac Fac Upp Upp Res Traps Triggered 5 | . . . 1 . . 4 . . . . Indirectly . | . . . . . . . . . . . Trap Hack Attempts . | . . . . . . . . . . . Triggered . | . . . . . . . . . . . Disarmed . | . . . . . . . . . . . Reprogrammed . | . . . . . . . . . . . Reused . | . . . . . . . . . . . Traps Extracted . | . . . . . . . . . . . Installed . | . . . . . . . . . . . Triggered . | . . . . . . . . . . . Machines | -11 -10 -9 -8 -7 -6 -5 -4 -4 -4 -3 ---------- Run | Yrd Mat Mat Mat Fac Fac Fac Fac Upp Upp Res Machines Disabled 14 | . . . 2 . 12 . . . . . Max in Single Turn 9 | . . . 1 . 9 . . . . . Machines Repaired . | . . . . . . . . . . . Machines Dismantled . | . . . . . . . . . . . Machines Sabotaged . | . . . . . . . . . . . Overloaded Fab Kills . | . . . . . . . . . . . Hacking | -11 -10 -9 -8 -7 -6 -5 -4 -4 -4 -3 --------- Run | Yrd Mat Mat Mat Fac Fac Fac Fac Upp Upp Res Machines Accessed 2 | . . . . . . 1 . . . 1 Terminals 2 | . . . . . . 1 . . . 1 Fabricators . | . . . . . . . . . . . Repair Stations . | . . . . . . . . . . . Recycling Units . | . . . . . . . . . . . Scanalyzers . | . . . . . . . . . . . Garrison Access . | . . . . . . . . . . . Total Hacks 3 | . . . . . . 2 . . . 1 Successful 2 | . . . . . . 1 . . . 1 Failed 1 | . . . . . . 1 . . . . Catastrophic . | . . . . . . . . . . . Database Lockouts . | . . . . . . . . . . . Manual . | . . . . . . . . . . . Terminals 3 | . . . . . . 2 . . . 1 Fabricators . | . . . . . . . . . . . Repair Stations . | . . . . . . . . . . . Recycling Units . | . . . . . . . . . . . Scanalyzers . | . . . . . . . . . . . Garrison Access . | . . . . . . . . . . . Terminal Hacks 2 | . . . . . . 1 . . . 1 Open DSF 2 | . . . . . . 1 . . . 1 Fabricator Hacks . | . . . . . . . . . . . Repair Station Hacks . | . . . . . . . . . . . Recycling Unit Hacks . | . . . . . . . . . . . Scanalyzer . | . . . . . . . . . . . Garrison Access Hacks . | . . . . . . . . . . . Unauthorized Hacks . | . . . . . . . . . . . Terminals . | . . . . . . . . . . . Fabricators . | . . . . . . . . . . . Repair Stations . | . . . . . . . . . . . Recycling Units . | . . . . . . . . . . . Scanalyzers . | . . . . . . . . . . . Garrison Access . | . . . . . . . . . . . Data Cores Recovered . | . . . . . . . . . . . Used . | . . . . . . . . . . . Hacking Detections 1 | . . . . . . 1 . . . . Full Trace Events . | . . . . . . . . . . . Feedback Events . | . . . . . . . . . . . Feedback Blocked . | . . . . . . . . . . . Robot Schematics Acquired . | . . . . . . . . . . . Robots Built . | . . . . . . . . . . . Authchips . | . . . . . . . . . . . Time . | . . . . . . . . . . . Total Robot Build Rating . | . . . . . . . . . . . Part Schematics Acquired . | . . . . . . . . . . . Parts Built . | . . . . . . . . . . . Authchips . | . . . . . . . . . . . Time . | . . . . . . . . . . . Total Part Build Rating . | . . . . . . . . . . . Parts Repaired . | . . . . . . . . . . . Time . | . . . . . . . . . . . Parts Recycled . | . . . . . . . . . . . Recycled Matter . | . . . . . . . . . . . Retrieved Matter . | . . . . . . . . . . . Retrieved Components . | . . . . . . . . . . . Parts Scanalyzed . | . . . . . . . . . . . Part Schematics Acquired . | . . . . . . . . . . . Parts Damaged . | . . . . . . . . . . . Bothacking | -11 -10 -9 -8 -7 -6 -5 -4 -4 -4 -3 ------------ Run | Yrd Mat Mat Mat Fac Fac Fac Fac Upp Upp Res Used RIF Installer . | . . . . . . . . . . . Robots Hacked . | . . . . . . . . . . . Non-combat . | . . . . . . . . . . . Combat . | . . . . . . . . . . . Robot Hacks Applied . | . . . . . . . . . . . Relay Couplers Released . | . . . . . . . . . . . Fabnet Peak Effective % . | . . . . . . . . . . . Robots Rewired . | . . . . . . . . . . . Allies Hacked . | . . . . . . . . . . . Hacks Repelled . | . . . . . . . . . . . Allies | -11 -10 -9 -8 -7 -6 -5 -4 -4 -4 -3 -------- Run | Yrd Mat Mat Mat Fac Fac Fac Fac Upp Upp Res Total Allies . | . . . . . . . . . . . Largest Group . | . . . . . . . . . . . Highest-Rated Group . | . . . . . . . . . . . Highest-Rated Ally . | . . . . . . . . . . . Total Orders . | . . . . . . . . . . . Ally Attacks . | . . . . . . . . . . . Total Damage . | . . . . . . . . . . . Kills . | . . . . . . . . . . . Allies Corrupted . | . . . . . . . . . . . Allies Melted . | . . . . . . . . . . . Intel | -11 -10 -9 -8 -7 -6 -5 -4 -4 -4 -3 ------- Run | Yrd Mat Mat Mat Fac Fac Fac Fac Upp Upp Res Robot Analysis Total . | . . . . . . . . . . . Derelict Logs Recovered 3 | . . . . . . . . 2 1 . Drone Launches 17 | . . . . . . . . . . 17 Drone Recoveries 10 | . . . . . . . . . . 10 Exploration | -11 -10 -9 -8 -7 -6 -5 -4 -4 -4 -3 ------------- Run | Yrd Mat Mat Mat Fac Fac Fac Fac Upp Upp Res Turns Passed 3127 | 45 221 130 466 324 508 394 313 377 23 326 Spaces Moved 3857 | 40 138 123 350 283 334 896 599 711 45 338 Core 509 | 15 6 . . . . 6 . 211 45 226 Treads 112 | . . . . . . . . . . 112 Legs 26 | . 26 . . . . . . . . . Wheels 559 | 25 106 123 305 . . . . . . . Hover 167 | . . . . . . 146 21 . . . Flight 2484 | . . . 45 283 334 744 578 500 . . Fastest Speed 17 | 50 90 92 28 20 17 24 31 34 50 50 Average Speed 47 | 81 104 92 87 23 17 34 35 40 50 88 Slowest Speed 350 | 100 150 92 111 31 98 350 61 100 50 300 Overloaded Moves . | . . . . . . . . . . . Propulsion Burnouts . | . . . . . . . . . . . Robots Hopped 21 | . . . . . 3 3 9 6 . . Cave-ins Triggered . | . . . . . . . . . . . Exploration Rate (%) 24 | 4 23 15 33 10 11 26 24 89 13 16 Regions Visited 10 Branch Regions 2 Pre-discovered Areas 1 | . . . . . . . . 1 . . Known Exits Taken . | . . . . . . . . . . . Unknown Exits Taken 10 | 1 1 1 1 1 1 1 1 1 1 . Scrap Searched 1 | . . . . . . . . 1 . . Spaces Dug . | . . . . . . . . . . . Terrain Destroyed 137 | . 7 18 21 . 91 . . . . . Melee . | . . . . . . . . . . . Projectile . | . . . . . . . . . . . AOE 137 | . 7 18 21 . 91 . . . . . Terrain Rammed . | . . . . . . . . . . . Walls Destroyed . | . . . . . . . . . . . Machines Disabled . | . . . . . . . . . . . Actions | -11 -10 -9 -8 -7 -6 -5 -4 -4 -4 -3 --------- Run | Yrd Mat Mat Mat Fac Fac Fac Fac Upp Upp Res Total 5002 | 52 191 137 465 527 752 979 696 796 44 363 Wait 806 | . 13 . 41 197 382 22 61 88 . 2 Move 3807 | 39 137 122 349 282 327 889 581 699 44 338 Hop 19 | . . . . . 3 3 8 5 . . Pick Up 113 | 8 14 5 15 15 10 18 16 2 . 10 Fast Attach . | . . . . . . . . . . . Attach 88 | 5 7 3 13 5 12 17 12 1 . 13 Detach 7 | . . . 1 2 . 1 3 . . . Swap 21 | . 1 2 7 6 5 . . . . . Drop 47 | . 4 3 11 11 2 6 10 . . . Fire 70 | . 15 2 28 9 11 . 5 . . . Melee . | . . . . . . . . . . . Ram 6 | . . . . . . 5 . 1 . . Kick . | . . . . . . . . . . . Crush . | . . . . . . . . . . . Escape Stasis 18 | . . . . . . 18 . . . . Rewire . | . . . . . . . . . . . Trap . | . . . . . . . . . . . Miscellaneous . | . . . . . . . . . . . Route ------- -11/Scrapyard -10/Materials -9/Materials -8/Materials -7/Factory -6/Factory -5/Factory -4/Factory -4/Upper Caves -4/Upper Caves -3/Research History --------- Turn | Location | Event 10 | -11/Scrapyard | Discovered new exit (range 15) 46 | -11/Scrapyard | Entered Materials 178 | -10/Materials | Lost 3 parts (1p1n1w) 194 | -10/Materials | Discovered new exit (range 4) 267 | -10/Materials | Entered another Materials area 267 | -9/Materials | Evolved 2 slots: Propulsion x2 309 | -9/Materials | Build established: Mutant 382 | -9/Materials | Discovered new exit (range 10) 397 | -9/Materials | Entered another Materials area 397 | -8/Materials | Evolved 2 slots: Propulsion x1, Utility x1 776 | -8/Materials | Met 7R-MNS 837 | -8/Materials | Discovered new exit (range 5) 863 | -8/Materials | Entered Factory 863 | -7/Factory | Evolved 2 slots: Propulsion x1, Weapon x1 864 | -7/Factory | Caught up to 7R-MNS 1021 | -7/Factory | Found Prototype Launcher 1165 | -7/Factory | Discovered new exit (range 11) 1179 | -7/Factory | Build established: Scavenger-Sprinter 1187 | -7/Factory | Entered another Factory area 1187 | -6/Factory | Evolved 2 slots: Propulsion x1, Utility x1 1188 | -6/Factory | Caught up to 7R-MNS 1464 | -6/Factory | Garrison activated, responded to threat 1639 | -6/Factory | Attacked by 7R-MNS 1650 | -6/Factory | Identified Rocket Array 1664 | -6/Factory | Discovered new exit (range 7) 1695 | -6/Factory | Entered another Factory area 1695 | -5/Factory | Evolved 2 slots: Power x1, Utility x1 1721 | -5/Factory | Lost 14 parts (1p8n5w) 1995 | -5/Factory | Search patrols dispatched 2086 | -5/Factory | Discovered new exit (range 5) 2089 | -5/Factory | Entered another Factory area 2089 | -4/Factory | Evolved 2 slots: Utility x1, Weapon x1 2202 | -4/Factory | Build established: Mutant 2319 | -4/Factory | Found Quantum Capacitor 2357 | -4/Factory | Spotted B-86 Titan 2376 | -4/Factory | Search patrols dispatched 2389 | -4/Factory | Discovered new exit (range 9) 2402 | -4/Factory | Entered Upper Caves 2411 | -4/Upper Caves | Attracted the attention of an 0b10 checkpoint 2643 | -4/Upper Caves | Attracted the attention of an 0b10 outpost 2645 | -4/Upper Caves | Learned location of Armory (-4) 2676 | -4/Upper Caves | Core integrity fell below 50% 2705 | -4/Upper Caves | Lost 5 parts (1p2n2u) 2774 | -4/Upper Caves | Discovered new exit (range 10) 2779 | -4/Upper Caves | Entered another Upper Caves area 2785 | -4/Upper Caves | Learned 4 Research zone layouts 2795 | -4/Upper Caves | Discovered new exit (range 14) 2802 | -4/Upper Caves | Entered Research 2802 | -3/Research | Evolved 2 slots: Propulsion x1, Weapon x1 2808 | -3/Research | Spotted B-86 Titan 3060 | -3/Research | Lost 7 parts (4n1u2w) 3060 | -3/Research | Core integrity fell below 50% 3071 | -3/Research | Core integrity fell below 20% 3128 | -3/Research | Destroyed by S-43 Plague with Heavy Machine Gun Last Messages --------------- 03108_ Mini Drone destroyed. 03112_ Slug penetrates Wall. 03112_ Mini Drone destroyed. 03114_ Drone sends a signal. 03115_ Mini Drone retrieved by Mni. Drone Bay. 03116_ Mini Drone released from Mni. Drone Bay. 03117_ P-80 Master resets P-80 Master, system corruption cleaned. 03118_ Mini Drone released from Mni. Drone Bay. 03119_ Mini Drone destroyed. 03120_ Mini Drone retrieved by Mni. Drone Bay. 03121_ Mini Drone destroyed. 03122_ Imp. Light Armor Plating destroyed. 03124_ Slug penetrates Terminal. 03126_ Mini Drone destroyed. 03127_ P-80 Master resets S-43 Plague, system corruption cleaned. 03127_ Acquired Antigrav Array. Map ----- +----------------------------------------------------+ | ?????????????????????????????????????????# ! | | ?????????????????????????????????????????# | | ?????????????????????????????????????????# | | ?????????????????????????????????????????# | | ?????????????????????????????????????????# ! | | ?????????????????????????????????????????? | | ???????????????????????????????????????????? | | ?????????????????????????????????????????????? | | ?????????????????????#############+#############+# | | ????????????????????? | | ???????????????????? | | ???????????????????? | | ???????????????????? | | ??????????????????#######+########+########## # | | ??????????????????? # #????# # | | ?????????????????? # #????# # | | ?????????????????# """ s"" # #????# # | | ?????????????????# """ """h # #????# # | | ?????????????????# """ T" # #????# # | | ?????????????????# """ """pp# ! % % #????# # | | ?????????????????# """ "" s%+%%*! #????# # | | ?????????????????# """ p ss# *% #????# # | | ?????????????????# """ # #????# # | | ?????????????????# ##########????# + | | ?????????????????# % #?????????????? # | | ?????????????????# @ #?????????????? ? | | ?????????????????##############??????????????????? | | ?????????????????????????????????????????????????? | | ?????????????????????????????????????????????????? | | ?????????????????????????????????????????????????? | | ?????????????????????????????????????????????????? | | ?????????????????????????????????????????????????? | | ?????????????????????????????????????????????????? | | ?????????????????????????????????????????????????? | | ?????????????????????????????????????????????????? | | ?????????????????????????????????????????????????? | | ?????????????????????????????????????????????????? | | ?????????????????????????????????????????????????? | | ?????????????????????????????????????????????????? | | ?????????????????????????????????????????????????? | | ?????????????????????????????????????????????????? | | ?????????????????????????????????????????????????? | | ?????????????????????????????????????????????????? | | ?????????????????????????????????????????????????? | | ?????????????????????????????????????????????????? | | ?????????????????????????????????????????????????? | | ?????????????????????????????????????????????????? | | ?????????????????????????????????????????????????? | | ?????????????????????????????????????????????????? | | ?????????????????????????????????????????????????? | +----------------------------------------------------+ Best States ------------- Heat Dissipation 48 Energy Generation 19 Energy Capacity 315 Matter Stores 300 Matter Capacity 300 Sight Range 16 Robot Scan Range 15 Terrain Scan Density 85 ECM Strength 2 Corruption Block 15 Armor Coverage 150 Resistance: EM 15 Evasion (%) 66 Recoil Reduction 1 Offensive Hacking 14 Defensive Hacking 14 Item Schematics ----------------- None Robot Schematics ------------------ None Fabricated ------------ Nothing Alien Tech Used ----------------- None Achievements -------------- Dangerous Findings Leap Before You Look Release The Drones! Respectable Loadout Challenges ------------ None Game ------ Seed StormShrapnelCore Manual? 0 Play Time 00:57:30 Cumulative 11.3 hours Start 2024.04.12 @ 02:09:45 End 2024.04.12 @ 03:09:34 Sessions 1 Manual Loads 0 Difficulty Rogue Special Mode None Game No. 17 Rogue 17 Adventurer 0 Explorer 0 Win Type - Total 0 Types 0/0/0/0/0/0/0/0/0 Lore% 10 Gallery% 22 Achievement% 17 Wizard Run 0 Options --------- Layout 1 ASCII 0 Keyboard 0 Movement Numpad Keybinds 0 Fullscreen 1 Font 24/Smallcaps Map View 50x35 Zoom Use 0% Tactical HUD 1 Map Filters NONE Filters NONE Steam 0 RUN: f9235c8a-6f89-4e67-8a46-691bc9716355